fUSD/lending_fUSD_20250828
["ID","MTS","AMOUNT","RATE_DAILY","PERIOD"]
[381835922,1756363879251,-806.84,0.000291,7]
[381835923,1756363879261,-242.05,0.000291,7]
[381835924,1756363879270,-854.89,0.000291,7]
[381835925,1756363879280,-11045.53,0.000291,7]
[381835926,1756363879291,-920.98,0.00029101,30]
[381835927,1756363879300,-2000.0,0.000292,2]
[381835928,1756363879309,-204818.65639751,0.00029234,7]
[381835929,1756363879319,-1710.899688,0.00029271,4]
[381835930,1756363879328,-456.61832875,0.00029271,4]
[381835931,1756363879337,-2352.0074,0.00029299,2]
[381835932,1756363879347,-13133.94,0.000293,2]
[381835933,1756363879356,-539.88,0.00029301,2]
[381835934,1756363879369,-342.39,0.00029301,2]
[381835935,1756363879378,-173.83,0.00029301,2]
[381835936,1756363879387,-3979.37,0.0002937,15]
[381835937,1756363879396,-3979.37,0.0002937,15]
[381835938,1756363879407,-305.82,0.000294,2]
[381835939,1756363879416,-449.19,0.000294,7]
[381835940,1756363879424,-500.0,0.00029452,5]
[381835941,1756363879434,-300.0,0.000295,2]
[381835942,1756363879444,-353.0,0.000295,2]
[381835943,1756363879453,-1504.213213,0.000295,2]
[381835944,1756363879462,-1900.0,0.00029576,7]
[381835945,1756363879472,-957.74,0.00029589,9]
[381835946,1756363879482,-332.60791905,0.0002959,2]
[381835947,1756363879492,-1710.899688,0.00029603,4]
[381835948,1756363879502,-456.61832875,0.00029603,4]
[381835949,1756363879512,-1425.0,0.00029633,2]
[381835950,1756363879521,-3979.37,0.00029644,15]
[381835951,1756363879531,-3979.37,0.00029644,15]
[381835952,1756363879541,-10400.93547608,0.00029699,2]
[381835953,1756363879550,-13073.55,0.000297,2]
[381835954,1756363879559,-500.0,0.00029767,6]
[381835955,1756363879568,-8437.21398021,0.00029777,12]
[381835956,1756363879577,-1425.0,0.0002984,2]
[381835957,1756363879587,-361.10247878,0.00029848,15]
[381835958,1756363879596,-500.0,0.00029877,6]
[381835959,1756363879605,-15377.95126335,0.000299,7]
[381835960,1756363879614,-3979.37,0.00029918,15]
[381835961,1756363879624,-3979.37,0.00029918,15]
[381835962,1756363879633,-1710.899688,0.00029936,4]
[381835963,1756363879642,-456.61832875,0.00029936,4]
[381835964,1756363879652,-1425.0,0.00029955,2]
[381835965,1756363879662,-232.1302067,0.0002999,2]
[381835966,1756363879672,-50000.0,0.0003,10]
[381835967,1756363879681,-1800.0,0.0003,31]
[381835968,1756363879690,-10000.0,0.0003,10]
[381835969,1756363879700,-19444.72904506,0.0003,2]
[381835970,1756363879710,-1776.31628101,0.0003,2]
[381835971,1756363879720,-162.1830654,0.0003,2]
[381835972,1756363879731,-1070.07900616,0.0003,10]
[381835973,1756363879791,-979.57948656,0.0003,2]
[381835974,1756363879800,-400.0,0.0003,20]
[381835975,1756363879810,-600.13424939,0.0003,2]
[381835976,1756363879819,-506.68,0.0003,10]
[381835977,1756363879831,-500.0,0.0003,7]
[381835978,1756363879842,-500.0,0.0003,7]
[381835979,1756363879852,-1000.0,0.0003,30]
[381835980,1756363879862,-1000.0,0.0003,30]
[381835981,1756363879872,-1000.0,0.0003,30]
[381835982,1756363879881,-1000.0,0.0003,30]
[381835983,1756363879890,-1000.0,0.0003,30]
[381835984,1756363879899,-1000.0,0.0003,30]
[381835985,1756363879909,-1000.0,0.0003,30]
[381835986,1756363879918,-1000.0,0.0003,30]
[381835987,1756363879927,-1000.0,0.0003,30]
[381835988,1756363879935,-1000.0,0.0003,30]
[381835989,1756363879945,-1000.0,0.0003,30]
[381835990,1756363879954,-1000.0,0.0003,30]
[381835991,1756363879963,-1000.0,0.0003,30]
[381835992,1756363879973,-1000.0,0.0003,30]
[381835993,1756363879985,-1000.0,0.0003,30]
[381835994,1756363879995,-1000.0,0.0003,30]
[381835995,1756363880004,-1000.0,0.0003,30]
[381835996,1756363880013,-1000.0,0.0003,30]
[381835997,1756363880022,-1000.0,0.0003,30]
[381835998,1756363880031,-1000.0,0.0003,30]
[381835999,1756363880040,-1000.0,0.0003,30]
[381836000,1756363880049,-1000.0,0.0003,30]
[381836001,1756363880058,-1000.0,0.0003,30]
[381836002,1756363880068,-1000.0,0.0003,30]
[381836003,1756363880077,-1000.0,0.0003,30]
[381836004,1756363880086,-1000.0,0.0003,30]
[381836005,1756363880095,-1000.0,0.0003,30]
[381836006,1756363880104,-1000.0,0.0003,30]
[381836007,1756363880113,-1000.0,0.0003,30]
[381836008,1756363880122,-1000.0,0.0003,30]
[381836009,1756363880131,-1000.0,0.0003,30]
[381836010,1756363880140,-1000.0,0.0003,5]
[381836011,1756363880149,-246.06,0.0003,30]
[381836012,1756363880159,-1000.0,0.0003,30]
[381836013,1756363880168,-159.96108266,0.0003,3]
[381836014,1756363880177,-1010.52851993,0.0003,30]
[381836015,1756363880186,-150.0,0.0003,2]
[381836016,1756363880195,-844.63891918,0.0003,10]
[381836017,1756363880204,-1000.0,0.0003,2]
[381836018,1756363880213,-1026.35470395,0.0003,2]
[381836019,1756363880222,-680.14059803,0.0003,30]
[381836020,1756363880230,-5000.0,0.0003,30]
[381836021,1756363880240,-2000.0,0.0003,14]
[381836022,1756363880249,-596.82358103,0.0003,2]
[381836023,1756363880258,-250.0,0.0003,2]
[381836024,1756363880267,-212.21549908,0.0003,10]
[381836025,1756363880277,-839.11126896,0.0003,30]
[381836026,1756363880286,-180.0,0.0003,30]
[381836027,1756363880295,-8172.31,0.0003,7]
[381836028,1756363880304,-161.26,0.0003,30]
[381836029,1756363880314,-183.0,0.0003,2]
[381836030,1756363880323,-602.0,0.0003,30]
[381836031,1756363880332,-160.0,0.0003,10]
[381836032,1756363880341,-160.0,0.0003,30]
[381836033,1756363880352,-1500.0,0.0003,2]
[381836034,1756363880362,-4000.0,0.0003,4]
[381836035,1756363880371,-515.52599168,0.000301,14]
[381836036,1756363880380,-700.0,0.00030124,7]
[381836037,1756363880389,-192237.37110307,0.0003013,2]
[381836038,1756363880399,-305.51184135,0.0003013,2]
[381836039,1756363880409,-1624.04932731,0.0003013,30]
[381836040,1756363880418,-13542.59423654,0.0003013,2]
[381836041,1756363880427,-197.24479118,0.0003013,2]
[381836042,1756363880436,-200.92908229,0.0003013,2]
[381836043,1756363880447,-7563.56858383,0.0003013,2]
[381836044,1756363880457,-676.37662762,0.0003013,30]
[381836045,1756363880465,-400.0,0.00030136,2]
[381836046,1756363880474,-400.43321377,0.00030136,2]
[381836047,1756363880484,-400.74846936,0.00030136,2]
[381836048,1756363880493,-400.0,0.00030136,7]
[381836049,1756363880501,-224.67151725,0.00030136,5]
[381836050,1756363880510,-4502.80910647,0.00030137,2]
[381836051,1756363880520,-758.44310782,0.00030137,120]
[381836052,1756363880531,-611.0,0.00030137,120]
[381836053,1756363880540,-500.0,0.00030137,7]
[381836054,1756363880550,-500.0,0.00030137,7]
[381836055,1756363880559,-498.98093173,0.00030137,7]
[381836056,1756363880568,-500.0,0.00030137,7]
[381836057,1756363880577,-500.0,0.00030137,7]
[381836058,1756363880586,-500.0,0.00030137,7]
[381836059,1756363880596,-500.0,0.00030137,7]
[381836060,1756363880605,-500.0,0.00030137,7]
[381836061,1756363880614,-500.0,0.00030137,7]
[381836062,1756363880623,-500.0,0.00030137,7]
[381836063,1756363880632,-500.0,0.00030137,7]
[381836064,1756363880641,-500.0,0.00030137,7]
[381836065,1756363880653,-500.0,0.00030137,7]
[381836066,1756363880663,-500.0,0.00030137,7]
[381836067,1756363880672,-866.63500132,0.00030137,7]
[381836068,1756363880683,-500.0,0.00030137,7]
[381836069,1756363880692,-700.0,0.00030137,7]
[381836070,1756363880701,-500.0,0.00030137,7]
[381836071,1756363880711,-700.0,0.00030137,7]
[381836072,1756363880719,-500.0,0.00030137,7]
[381836073,1756363880728,-700.0,0.00030137,7]
[381836074,1756363880737,-500.0,0.00030137,7]
[381836075,1756363880747,-700.0,0.00030137,7]
[381836076,1756363880756,-500.0,0.00030137,7]
[381836077,1756363880765,-700.0,0.00030137,7]
[381836078,1756363880774,-500.0,0.00030137,7]
[381836079,1756363880783,-700.0,0.00030137,7]
[381836080,1756363880792,-700.0,0.00030137,7]
[381836081,1756363880801,-500.0,0.00030137,7]
[381836082,1756363880810,-700.0,0.00030137,7]
[381836083,1756363880819,-500.0,0.00030137,7]
[381836084,1756363880828,-700.0,0.00030137,7]
[381836085,1756363880837,-500.0,0.00030137,7]
[381836086,1756363880846,-700.0,0.00030137,7]
[381836087,1756363880855,-500.0,0.00030137,7]
[381836088,1756363880864,-500.0,0.00030137,7]
[381836089,1756363880873,-500.0,0.00030137,7]
[381836090,1756363880882,-700.0,0.00030137,7]
[381836091,1756363880891,-500.0,0.00030137,7]
[381836092,1756363880901,-500.0,0.00030137,7]
[381836093,1756363880911,-500.0,0.00030137,7]
[381836094,1756363880921,-700.0,0.00030137,7]
[381836095,1756363880930,-500.0,0.00030137,7]
[381836096,1756363880940,-500.0,0.00030137,7]
[381836097,1756363880950,-500.0,0.00030137,7]
[381836099,1756363880959,-500.0,0.00030137,7]
[381836100,1756363880969,-500.0,0.00030137,7]
[381836101,1756363880980,-700.0,0.00030137,7]
[381836102,1756363880989,-500.0,0.00030137,7]
[381836103,1756363880998,-977.44200671,0.00030137,7]
[381836104,1756363881007,-500.0,0.00030137,7]
[381836105,1756363881016,-500.0,0.00030137,7]
[381836106,1756363881026,-500.0,0.00030137,7]
[381836107,1756363881036,-500.0,0.00030137,7]
[381836108,1756363881045,-500.0,0.00030137,7]
[381836109,1756363881055,-500.0,0.00030137,7]
[381836110,1756363881066,-700.0,0.00030137,7]
[381836111,1756363881077,-500.0,0.00030137,7]
[381836112,1756363881088,-500.0,0.00030137,7]
[381836113,1756363881097,-500.0,0.00030137,7]
[381836114,1756363881107,-500.0,0.00030137,7]
[381836115,1756363881116,-700.0,0.00030137,7]
[381836116,1756363881125,-500.0,0.00030137,7]
[381836117,1756363881135,-500.0,0.00030137,7]
[381836118,1756363881144,-500.0,0.00030137,7]
[381836119,1756363881154,-700.0,0.00030137,7]
[381836120,1756363881164,-500.0,0.00030137,7]
[381836121,1756363881174,-500.0,0.00030137,7]
[381836122,1756363881183,-500.0,0.00030137,7]
[381836123,1756363881193,-500.0,0.00030137,7]
[381836124,1756363881202,-700.0,0.00030137,7]
[381836125,1756363881211,-500.0,0.00030137,7]
[381836126,1756363881221,-500.0,0.00030137,7]
[381836127,1756363881239,-500.0,0.00030137,7]
[381836128,1756363881258,-700.0,0.00030137,7]
[381836129,1756363881271,-500.0,0.00030137,7]
[381836130,1756363881281,-500.0,0.00030137,7]
[381836131,1756363881290,-500.0,0.00030137,7]
[381836132,1756363881300,-500.0,0.00030137,7]
[381836133,1756363881309,-500.0,0.00030137,7]
[381836134,1756363881318,-500.0,0.00030137,7]
[381836135,1756363881327,-500.0,0.00030137,7]
[381836136,1756363881336,-500.0,0.00030137,7]
[381836137,1756363881345,-700.0,0.00030137,7]
[381836138,1756363881354,-500.0,0.00030137,7]
[381836139,1756363881363,-500.0,0.00030137,7]
[381836140,1756363881372,-500.0,0.00030137,7]
[381836141,1756363881382,-500.0,0.00030137,7]
[381836142,1756363881391,-500.0,0.00030137,7]
[381836143,1756363881400,-500.0,0.00030137,7]
[381836144,1756363881409,-700.0,0.00030137,7]
[381836145,1756363881418,-500.0,0.00030137,7]
[381836146,1756363881427,-500.0,0.00030137,7]
[381836147,1756363881436,-195.9591225,0.00030137,7]
[381836148,1756363881445,-500.0,0.00030137,7]
[381836149,1756363881455,-500.0,0.00030137,7]
[381836150,1756363881463,-500.0,0.00030137,7]
[381836151,1756363881472,-700.0,0.00030137,7]
[381836152,1756363881481,-887.04373626,0.00030137,7]
[381836153,1756363881490,-500.0,0.00030137,7]
[381836154,1756363881499,-500.0,0.00030137,7]
[381836155,1756363881508,-500.0,0.00030137,7]
[381836156,1756363881517,-500.0,0.00030137,7]
[381836157,1756363881526,-500.0,0.00030137,7]
[381836158,1756363881535,-700.0,0.00030137,7]
[381836159,1756363881544,-500.0,0.00030137,7]
[381836160,1756363881554,-700.0,0.00030137,7]
[381836161,1756363881563,-500.0,0.00030137,7]
[381836162,1756363881573,-500.0,0.00030137,7]
[381836163,1756363881581,-700.0,0.00030137,7]
[381836164,1756363881590,-500.0,0.00030137,7]
[381836165,1756363881599,-500.0,0.00030137,7]
[381836166,1756363881608,-500.0,0.00030137,7]
[381836167,1756363881617,-500.0,0.00030137,7]
[381836168,1756363881626,-500.0,0.00030137,7]
[381836169,1756363881635,-982.06333775,0.00030137,7]
[381836170,1756363881644,-500.0,0.00030137,7]
[381836171,1756363881653,-500.0,0.00030137,7]
[381836172,1756363881662,-500.0,0.00030137,7]
[381836173,1756363881671,-700.0,0.00030137,7]
[381836174,1756363881681,-500.0,0.00030137,7]
[381836175,1756363881690,-500.0,0.00030137,7]
[381836176,1756363881698,-500.0,0.00030137,7]
[381836177,1756363881707,-700.0,0.00030137,7]
[381836178,1756363881716,-500.0,0.00030137,7]
[381836179,1756363881725,-500.0,0.00030137,7]
[381836180,1756363881734,-500.0,0.00030137,7]
[381836181,1756363881743,-700.0,0.00030137,7]
[381836182,1756363881751,-884.04427292,0.00030137,7]
[381836183,1756363881761,-500.0,0.00030137,7]
[381836184,1756363881770,-900.0,0.00030137,7]
[381836185,1756363881779,-500.0,0.00030137,7]
[381836186,1756363881788,-500.0,0.00030137,7]
[381836187,1756363881797,-500.0,0.00030137,7]
[381836188,1756363881806,-615.53061498,0.00030137,7]
[381836189,1756363881815,-500.0,0.00030137,7]
[381836190,1756363881824,-500.0,0.00030137,7]
[381836191,1756363881833,-500.0,0.00030137,7]
[381836192,1756363881843,-625.19951831,0.00030137,7]
[381836193,1756363881852,-1401.01147663,0.00030139,30]
[381836194,1756363881861,-3979.37,0.00030192,15]
[381836195,1756363881870,-3979.37,0.00030192,15]
[381836196,1756363881880,-1710.899688,0.00030269,4]
[381836197,1756363881890,-456.61832875,0.00030269,4]
[381836198,1756363881899,-957.74,0.00030273,10]
[381836199,1756363881908,-150.0,0.0003033,120]
[381836200,1756363881917,-150.0,0.00030376,120]
[381836201,1756363881926,-1535.88,0.00030401,2]
[381836202,1756363881935,-3979.37,0.00030466,15]
[381836203,1756363881945,-3979.37,0.00030466,15]
[381836204,1756363881954,-8437.21398021,0.00030474,14]
[381836205,1756363881963,-300.0,0.000305,3]
[381836206,1756363881973,-172.0,0.000305,30]
[381836207,1756363881985,-920.98,0.00030522,30]
[381836208,1756363881996,-838.53,0.00030555,15]
[381836209,1756363882006,-1710.899688,0.00030601,4]
[381836210,1756363882015,-456.61832875,0.00030601,4]
[381836211,1756363882025,-838.53,0.00030655,15]
[381836212,1756363882034,-500.0,0.00030666,10]
[381836213,1756363882043,-2195.62,0.00030684,17]
[381836214,1756363882052,-344.0,0.0003069,2]
[381836215,1756363882062,-907.17126563,0.000307,2]
[381836216,1756363882072,-838.53,0.00030755,15]
[381836217,1756363882081,-725.52463839,0.0003079,2]
[381836218,1756363882091,-250.0,0.000308,30]
[381836219,1756363882101,-183.15,0.00030822,2]
[381836220,1756363882110,-457.93,0.00030822,80]
[381836221,1756363882120,-838.53,0.00030855,15]
[381836222,1756363882130,-1710.899688,0.00030934,4]
[381836223,1756363882140,-456.61832875,0.00030934,4]
[381836224,1756363882149,-838.53,0.00030955,15]
[381836225,1756363882158,-957.74,0.00030958,11]
[381836226,1756363882169,-344.91441206,0.00030959,2]
[381836227,1756363882178,-50000.0,0.00031,11]
[381836228,1756363882189,-333.6183046,0.00031,5]
[381836229,1756363882198,-1800.0,0.00031,32]
[381836230,1756363882207,-361078.50307226,0.00031,4]
[381836231,1756363882216,-179.76662522,0.00031,30]
[381836232,1756363882225,-180.0,0.00031,30]
[381836233,1756363882235,-183.0,0.00031,30]
[381836234,1756363882244,-602.0,0.00031,30]
[381836235,1756363882253,-838.53,0.00031055,15]
[381836236,1756363882262,-150.0,0.00031057,120]
[381836237,1756363882272,-150.0,0.00031062,120]
[381836238,1756363882281,-312.76700458,0.00031067,2]
[381836239,1756363882290,-838.53,0.00031155,15]
[381836240,1756363882299,-8437.21398021,0.00031171,15]
[381836241,1756363882308,-1900.0,0.0003122,7]
[381836242,1756363882317,-3035.74,0.00031232,10]
[381836243,1756363882326,-838.53,0.00031255,15]
[381836244,1756363882335,-200.0,0.00031259,2]
[381836245,1756363882345,-1710.899688,0.00031266,4]
[381836246,1756363882353,-456.61832875,0.00031266,4]
[381836247,1756363882363,-838.53,0.00031355,15]
[381836248,1756363882374,-8877.96049922,0.000314,30]
[381836249,1756363882384,-19220.72410705,0.0003143,4]
[381836250,1756363882392,-838.53,0.00031455,15]
[381836251,1756363882402,-300.0,0.000315,5]
[381836252,1756363882411,-193.29261455,0.000315,2]
[381836253,1756363882420,-150.0,0.000315,2]
[381836254,1756363882428,-361.10247878,0.00031555,15]
[381836255,1756363882437,-838.53,0.00031555,15]
[381836256,1756363882446,-176.87816177,0.00031573,2]
[381836257,1756363882455,-171.57181692,0.00031573,2]
[381836258,1756363882464,-166.42466241,0.00031573,2]
[381836259,1756363882473,-161.43192254,0.00031573,2]
[381836260,1756363882482,-156.58896486,0.00031573,2]
[381836261,1756363882491,-151.89129592,0.00031573,2]
[381836262,1756363882500,-150.0,0.00031573,2]
[381836263,1756363882509,-150.0,0.00031573,2]
[381836264,1756363882518,-150.0,0.00031573,2]
[381836265,1756363882527,-150.0,0.00031573,2]
[381836266,1756363882535,-150.0,0.00031573,2]
[381836267,1756363882544,-150.0,0.00031573,2]
[381836268,1756363882553,-150.0,0.00031573,2]
[381836269,1756363882562,-150.0,0.00031573,2]
[381836270,1756363882571,-150.0,0.00031573,2]
[381836271,1756363882580,-150.0,0.00031573,2]
[381836272,1756363882589,-150.0,0.00031573,2]
[381836273,1756363882598,-150.0,0.00031573,2]
[381836274,1756363882607,-150.0,0.00031573,2]
[381836275,1756363882616,-150.0,0.00031573,2]
[381836276,1756363882625,-150.0,0.00031573,2]
[381836277,1756363882634,-150.0,0.00031573,2]
[381836278,1756363882644,-150.0,0.00031573,2]
[381836279,1756363882654,-150.0,0.00031573,2]
[381836280,1756363882663,-150.0,0.00031573,2]
[381836281,1756363882672,-150.0,0.00031573,2]
[381836282,1756363882682,-150.0,0.00031573,2]
[381836283,1756363882691,-150.0,0.00031573,2]
[381836284,1756363882699,-150.0,0.00031573,2]
[381836285,1756363882710,-150.0,0.00031573,2]
[381836286,1756363882721,-150.0,0.00031573,2]
[381836287,1756363882730,-150.0,0.00031573,2]
[381836288,1756363882739,-150.0,0.00031573,2]
[381836289,1756363882747,-150.0,0.00031573,2]
[381836290,1756363882756,-150.0,0.00031573,2]
[381836291,1756363882765,-150.0,0.00031573,2]
[381836292,1756363882774,-150.0,0.00031573,2]
[381836293,1756363882784,-261.15190152,0.00031573,2]
[381836294,1756363882795,-150.0,0.00031576,120]
[381836295,1756363882805,-1710.899688,0.00031599,30]
[381836296,1756363882814,-456.61832875,0.00031599,30]
[381836297,1756363882823,-957.74,0.00031643,12]
[381836298,1756363882832,-838.53,0.00031655,15]
[381836299,1756363882841,-500.0,0.00031666,10]
[381836300,1756363882850,-150.0,0.0003169,120]
[381836301,1756363882859,-838.53,0.00031755,15]
[381836302,1756363882868,-700.0,0.00031768,7]
[381836303,1756363882878,-150.0,0.00031771,2]
[381836304,1756363882887,-150.0,0.00031771,2]
[381836305,1756363882896,-150.0,0.00031771,2]
[381836306,1756363882906,-172.76,0.000318,60]
[381836307,1756363882915,-838.53,0.00031855,15]
[381836308,1756363882924,-150.0,0.00031861,120]
[381836309,1756363882934,-8437.21398021,0.00031867,17]
[381836310,1756363882944,-334.0,0.0003187,2]
[381836311,1756363882954,-281.03250597,0.00031871,2]
[381836312,1756363882963,-16185.40648439,0.00031889,2]
[381836313,1756363882973,-1063.26915069,0.00031889,2]
[381836314,1756363882985,-950.40404108,0.00031925,2]
[381836315,1756363882994,-1710.899688,0.00031932,30]
[381836316,1756363883003,-456.61832875,0.00031932,30]
[381836317,1756363883013,-920.98,0.00031942,30]
[381836318,1756363883022,-838.53,0.00031955,15]
[381836319,1756363883032,-50000.0,0.00032,12]
[381836320,1756363883041,-10644.35226698,0.00032,2]
[381836321,1756363883050,-254.686437,0.00032,2]
[381836322,1756363883062,-4621.08047456,0.00032,10]
[381836323,1756363883072,-1800.0,0.00032,33]
[381836324,1756363883082,-1718.47318124,0.00032,120]
[381836325,1756363883091,-150.0,0.00032,2]
[381836326,1756363883100,-1000.0,0.00032,2]
[381836327,1756363883111,-2407.0,0.00032,120]
[381836328,1756363883121,-2237.34939367,0.00032,120]
[381836329,1756363883132,-7425.33446172,0.00032,2]
[381836330,1756363883142,-180.0,0.00032,30]
[381836331,1756363883153,-167.0,0.00032,2]
[381836332,1756363883162,-167.0,0.00032,2]
[381836333,1756363883173,-183.0,0.00032,30]
[381836334,1756363883183,-602.0,0.00032,30]
[381836335,1756363883192,-127412.66,0.00032,7]
[381836336,1756363883202,-450.0,0.00032,14]
[381836337,1756363883211,-4000.0,0.00032,4]
[381836338,1756363883220,-150.0,0.00032018,120]
[381836339,1756363883230,-950.40404108,0.00032025,2]
[381836340,1756363883239,-838.53,0.00032055,15]
[381836341,1756363883249,-950.40404108,0.00032125,2]
[381836342,1756363883258,-838.53,0.00032155,15]
[381836343,1756363883269,-500.0,0.0003216,2]
[381836344,1756363883279,-150.0,0.00032166,120]
[381836345,1756363883289,-950.40404108,0.00032225,2]
[381836346,1756363883300,-838.53,0.00032255,15]
[381836347,1756363883310,-1710.899688,0.00032264,30]
[381836348,1756363883320,-456.61832875,0.00032264,30]
[381836349,1756363883332,-450.0,0.00032298,14]
[381836350,1756363883341,-874.0184117,0.000323,2]
[381836351,1756363883351,-950.40404108,0.00032325,2]
[381836352,1756363883360,-357.6762453,0.00032328,2]
[381836353,1756363883369,-957.74,0.00032328,13]
[381836354,1756363883378,-838.53,0.00032355,15]
[381836355,1756363883388,-6027.35968519,0.00032361,4]
[381836356,1756363883398,-2878.700711,0.00032362,7]
[381836357,1756363883407,-1458.576402,0.00032362,7]
[381836358,1756363883416,-2846.0,0.000324,34]
[381836359,1756363883427,-950.40404108,0.00032425,2]
[381836360,1756363883436,-838.53,0.00032455,15]
[381836361,1756363883447,-300.0,0.000325,6]
[381836362,1756363883460,-7547.787,0.000325,7]
[381836363,1756363883469,-7547.788,0.000325,7]
[381836364,1756363883479,-7547.787,0.000325,7]
[381836365,1756363883489,-7547.787,0.000325,7]
[381836366,1756363883499,-7547.788,0.000325,7]
[381836367,1756363883508,-150.0,0.00032504,120]
[381836368,1756363883518,-950.40404108,0.00032525,2]
[381836369,1756363883528,-838.53,0.00032555,15]
[381836370,1756363883537,-8437.21398021,0.00032564,18]
[381836371,1756363883547,-1710.899688,0.00032597,30]
[381836372,1756363883556,-456.61832875,0.00032597,30]
[381836373,1756363883566,-2000.0,0.000326,2]
[381836374,1756363883575,-838.53,0.00032655,15]
[381836375,1756363883585,-950.40404108,0.00032725,2]
[381836376,1756363883595,-838.53,0.00032755,15]
[381836377,1756363883605,-4718.41604127,0.000328,2]
[381836378,1756363883615,-20048.0,0.000328,30]
[381836379,1756363883625,-40000.0,0.000328,120]
[381836380,1756363883635,-400.0,0.000328,11]
[381836381,1756363883644,-300.0,0.000328,11]
[381836382,1756363883654,-838.53,0.00032855,15]
[381836383,1756363883663,-1900.0,0.00032864,7]
[381836384,1756363883673,-500.0,0.0003287,120]
[381836385,1756363883683,-1000.0,0.00032876,30]
[381836386,1756363883692,-1000.0,0.00032876,30]
[381836387,1756363883702,-1000.0,0.00032876,30]
[381836388,1756363883712,-1022.48203344,0.00032876,30]
[381836389,1756363883721,-400.0,0.00032876,2]
[381836390,1756363883731,-400.0,0.00032876,2]
[381836391,1756363883741,-400.0,0.00032876,2]
[381836392,1756363883750,-400.0,0.00032876,2]
[381836393,1756363883760,-400.0,0.00032876,2]
[381836394,1756363883770,-400.0,0.00032876,2]
[381836395,1756363883779,-400.0,0.00032876,2]
[381836396,1756363883788,-400.0,0.00032876,2]
[381836397,1756363883800,-400.0,0.00032876,2]
[381836398,1756363883810,-400.0,0.00032876,2]
[381836399,1756363883819,-400.0,0.00032876,2]
[381836400,1756363883828,-400.0,0.00032876,2]
[381836401,1756363883838,-400.0,0.00032876,2]
[381836402,1756363883848,-400.0,0.00032876,2]
[381836403,1756363883860,-462.01178542,0.00032876,2]
[381836404,1756363883870,-2195.62,0.00032876,22]
[381836405,1756363883879,-336.72,0.00032877,2]
[381836406,1756363883889,-500.0,0.00032877,7]
[381836407,1756363883899,-495.93022524,0.00032877,7]
[381836408,1756363883909,-500.0,0.00032877,7]
[381836409,1756363883918,-500.0,0.00032877,7]
[381836410,1756363883927,-400.0,0.000329,12]
[381836411,1756363883938,-300.0,0.000329,12]
[381836412,1756363883948,-907.17126563,0.000329,2]
[381836413,1756363883958,-1710.899688,0.0003293,30]
[381836414,1756363883968,-456.61832875,0.0003293,30]
[381836415,1756363883979,-150.0,0.00032932,120]
[381836416,1756363883989,-838.53,0.00032955,60]
[381836417,1756363883999,-15230.14173073,0.00032991,2]
[381836418,1756363884008,-15065043.554555,0.00032992,15]
[381836419,1756363884018,-50000.0,0.00033,13]
[381836420,1756363884028,-15603.15800059,0.00033,7]
[381836421,1756363884038,-4615.47923017,0.00033,2]
[381836422,1756363884049,-24230.78202475,0.00033,2]